fUST/lending_fUST_20240501
["ID","MTS","AMOUNT","RATE_DAILY","PERIOD"]
[325188188,1714559441361,-203.8574549,0.00051512,2]
[325188189,1714559441371,-153.0,0.00051512,2]
[325188190,1714559441379,-153.0,0.00051512,2]
[325188191,1714559441389,-153.0,0.00051512,30]
[325188192,1714559441401,-153.0,0.00051512,2]
[325188193,1714559441410,-153.0,0.00051512,2]
[325188194,1714559441419,-153.0,0.00051512,2]
[325188195,1714559441429,-153.0,0.00051512,2]
[325188196,1714559441438,-153.0,0.00051512,30]
[325188197,1714559441447,-203.8574549,0.00051512,2]
[325188198,1714559441456,-203.8574549,0.00051512,2]
[325188199,1714559441465,-153.0,0.00051512,2]
[325188200,1714559441474,-153.0,0.00051512,30]
[325188201,1714559441483,-203.8574549,0.00051512,2]
[325188202,1714559441492,-203.8574549,0.00051512,2]
[325188203,1714559441501,-153.0,0.00051512,30]
[325188204,1714559441510,-203.8574549,0.00051512,2]
[325188205,1714559441519,-162.0,0.00051781,120]
[325188206,1714559441528,-151.0,0.00051918,120]
[325188207,1714559441538,-178.0,0.00052,120]
[325188208,1714559441547,-353.35134806,0.00052114,120]
[325188209,1714559441556,-441.28766851,0.00052114,120]
[325188210,1714559441566,-441.28766851,0.00052114,120]
[325188211,1714559441575,-228.9556464,0.00052114,120]
[325188212,1714559441584,-372.31512878,0.00052196,2]
[325188213,1714559441593,-2000.0,0.00052196,2]
[325188214,1714559441603,-153.0,0.00052254,2]
[325188215,1714559441612,-153.0,0.00052254,2]
[325188216,1714559441621,-153.0,0.00052254,2]
[325188217,1714559441631,-608.84034,0.00052254,2]
[325188218,1714559441640,-327.91439925,0.0005228,2]
[325188219,1714559441651,-47.02162792,0.00052286,3]
[325188256,1714559443902,-2776.5,0.00052276,3]
[325188306,1714559448443,-3059.82715,0.00052276,3]
[325188326,1714560408956,717.98897193,9.999e-05,2]
[325188327,1714560433156,-355.91478754,0.00020912,2]
[325188328,1714560433176,-5203.70202753,0.00020913,2]
[325188329,1714560433196,-447.2209758,0.00032,4]
[325188330,1714560433218,-466.46671286,0.00034,4]
[325188331,1714560433237,-169.347689,0.00035616,120]
[325188332,1714560433258,-160.616438,0.00036832,2]
[325188333,1714560433277,-2049.08470554,0.00037,2]
[325188334,1714560433297,-44.2754036,0.0003919,2]
[325188335,1714560551157,-4763.19534559,0.00020913,2]
[325188336,1714560551179,-447.2209758,0.00032,4]
[325188337,1714560551200,-597.98045973,0.00035259,2]
[325188338,1714560551220,-2049.08470554,0.00037,2]
[325188339,1714560551241,-605.90051,0.00039168,2]
[325188340,1714560551261,-1016.99714202,0.0003919,4]
[325188341,1714560551281,-5104.97968368,0.0004,4]
[325188342,1714560551302,-486.33472313,0.0004,2]
[325188343,1714560551321,-466.46671286,0.00040908,4]
[325188344,1714560551343,-605.90052,0.00040909,2]
[325188345,1714560551363,-252.7509919,0.00041,2]
[325188346,1714560551383,-154.70605849,0.00042649,10]
[325188347,1714560551403,-605.90052,0.0004265,2]
[325188348,1714560551424,-171.72130461,0.00043518,4]
[325188349,1714560551444,-600.0,0.00043518,30]
[325188350,1714560551466,-547.07,0.00043519,7]
[325188351,1714560551487,-547.07,0.00043519,7]
[325188352,1714560551508,-547.07,0.00043519,7]
[325188353,1714560551528,-547.07,0.00043519,7]
[325188354,1714560551550,-547.07,0.00043519,7]
[325188355,1714560551579,-547.07,0.00043519,7]
[325188356,1714560551600,-547.07,0.00043519,7]
[325188357,1714560551621,-547.07,0.00043519,7]
[325188358,1714560551643,-500.0,0.00043519,31]
[325188359,1714560551664,-228.37755277,0.00043519,31]
[325188360,1714560551684,-527.77558626,0.00044316,11]
[325188361,1714560551705,-605.90052,0.00044391,2]
[325188362,1714560551728,-1279.0,0.00045827,3]
[325188363,1714560551749,-605.90052,0.00046131,2]
[325188364,1714560551770,-709.46184881,0.00046601,30]
[325188365,1714560551790,-605.90052,0.00047872,2]
[325188366,1714560551823,-1800.0,0.00049,120]
[325188367,1714560551845,-166.666666,0.00049297,2]
[325188368,1714560551865,-2520.44707597,0.00049315,120]
[325188369,1714560552785,8223.58846374,0.00037,5]
[325188370,1714560561536,511.10968662,0.00043519,4]
[325188371,1714560563030,171.72130461,0.00043519,4]
[325188372,1714560563123,3175.46356373,0.00043519,4]
[325188373,1714560564636,954.95417581,0.0003919,4]
[325188374,1714560564989,466.46671286,0.00043519,4]
[325188375,1714560567452,683.40623969,0.00043519,2]
[325188376,1714560570497,2341.81109205,0.00043519,2]
[325188377,1714560570659,304.46572506,0.00043519,10]
[325188378,1714560572542,5104.97968368,0.00043519,4]
[325188379,1714560573221,486.33472313,0.00043519,2]
[325188380,1714560579663,514.22610552,0.00043519,30]
[325188381,1714560582948,466.46671286,0.00043519,4]
[325188382,1714560583453,683.40623969,0.00043519,2]
[325188383,1714560583524,511.10968662,0.00043519,4]
[325188384,1714560584501,2341.81109205,0.00043519,2]
[325188385,1714560585164,171.72130461,0.00043519,4]
[325188386,1714560585194,2646.21963644,0.00043519,4]
[325188387,1714560589226,486.33472313,0.00043519,2]
[325188388,1714560592550,2069.23151172,0.00043519,4]
[325188554,1714560641890,-565.90470413,0.00039168,2]
[325188555,1714560642036,-39.99580587,0.00039168,2]
[325188556,1714560642046,-252.7509919,0.00041,2]
[325188557,1714560642055,-605.90052,0.0004207,2]
[325188558,1714560642065,-466.46671286,0.00043517,4]
[325188559,1714560642075,-171.72130461,0.00043517,4]
[325188560,1714560642084,-486.33472313,0.00043517,2]
[325188561,1714560642093,-124.56449749,0.00043518,2]
[325188562,1714560642104,-1218.16870757,0.00043518,2]
[325188563,1714560642113,-683.40623969,0.00043518,2]
[325188564,1714560642122,-511.10968662,0.00043518,4]
[325188565,1714560642132,-152.86222649,0.00043518,4]
[325188574,1714560644767,-1964.11348266,0.00043518,4]
[325188579,1714560644777,-998.5,0.00043519,30]
[325188583,1714560644787,-165.8168504,0.00043519,48]
[325188587,1714560644798,-165.8168504,0.00043519,48]
[325188591,1714560644807,-20461.51089529,0.00043519,30]
[325188595,1714560644820,-2474.89031521,0.00043519,30]
[325188640,1714560647343,-1347.73896901,0.00043519,30]
[325188641,1714560647354,-466.16787958,0.00043519,30]
[325188642,1714560722424,209.40982226,0.000165,2]
[325188644,1714560762509,364.2395096,9.999e-05,2]
[325188648,1714560915423,300.0,0.00020913,30]
[325188649,1714560935760,300.0,0.00020913,30]
[325188655,1714561432604,-272.87483722,0.00019159,2]
[325188656,1714561432634,-2101.71813346,0.0001916,2]
[325188657,1714561432659,-1378.68043058,0.00019161,2]
[325188658,1714561432683,-24900.0,0.0001945,2]
[325188659,1714561432706,-160.92208,0.00019803,2]
[325188663,1714561746312,-272.87483722,0.00020912,2]
[325188664,1714561746333,-241.64618573,0.00020912,2]
[325188665,1714561749120,-1137.03424485,0.00020912,2]
[325188666,1714561749140,-1272.05864972,0.00020912,2]
[325188667,1714561749162,-173.21086087,0.00020913,2]
[325188668,1714561749183,-155.12385227,0.00020913,2]
[325188669,1714561749204,-155.04825838,0.00020913,2]
[325188670,1714561749225,-154.79876161,0.00020913,2]
[325188671,1714561749246,-154.99687411,0.00020913,2]
[325188672,1714561749267,-166.666666,0.00021918,2]
[325188673,1714561749287,-166.666666,0.00022431,2]
[325188674,1714561749308,-166.666666,0.00022944,2]
[325188675,1714561749328,-166.666666,0.00023456,2]
[325188676,1714561749348,-166.666666,0.00023969,2]
[325188677,1714561749368,-166.666666,0.00024482,2]
[325188678,1714561749388,-2659.95874921,0.00025,2]
[325188679,1714561749409,-502.00264863,0.00028769,2]
[325188680,1714561749430,-500.0,0.00028769,2]
[325188681,1714561749449,-500.0,0.00028769,2]
[325188682,1714561749472,-649.3942441,0.00028769,2]
[325188683,1714561749492,-500.0,0.00028769,2]
[325188684,1714561749512,-500.0,0.00028769,2]
[325188685,1714561749533,-500.0,0.00028769,2]
[325188686,1714561749554,-500.0,0.00028769,2]
[325188687,1714561749573,-61246.209182,0.0002877,2]
[325188688,1714561749594,-843.66722657,0.00029,2]
[325188689,1714561749614,-828.13540381,0.000299,2]
[325188690,1714561749636,-828.13540377,0.000299,2]
[325188691,1714561749660,-828.13540377,0.000299,2]
[325188692,1714561749680,-828.13540377,0.000299,2]
[325188693,1714561749702,-828.13540377,0.000299,2]
[325188694,1714561749723,-828.13540377,0.000299,2]
[325188695,1714561749744,-828.13540377,0.000299,2]
[325188696,1714561749767,-828.13540377,0.000299,2]
[325188697,1714561749788,-828.13540377,0.000299,2]
[325188698,1714561749810,-828.13540377,0.000299,2]
[325188699,1714561749829,-577.18324782,0.0003,2]
[325188700,1714561749851,-216.0,0.0003,2]
[325188701,1714561749870,-1437.47835857,0.00031,2]
[325188702,1714561749890,-447.2209758,0.00032,4]
[325188703,1714561749912,-466.46671286,0.00034,4]
[325188704,1714561749933,-160.633135,0.0003448,2]
[325188705,1714561749956,-1271.86176283,0.00034728,12]
[325188706,1714561749978,-8002.56,0.0003489,3]
[325188707,1714561749998,-361.76385605,0.00034899,7]
[325188708,1714561750019,-421.51725408,0.00034899,7]
[325188709,1714561750040,-26910.69445433,0.000349,2]
[325188710,1714561750059,-154.70605849,0.00035,4]
[325188711,1714561750079,-597.98045973,0.00035,2]
[325188712,1714561750099,-205.778119,0.00035616,120]
[325188713,1714561750121,-28601.1760015,0.00036,2]
[325188714,1714561750143,-12336.13444926,0.00037,2]
[325188715,1714561750167,-606.32569,0.00039181,2]
[325188716,1714561750190,-486.33472313,0.0004,2]
[325188717,1714561750212,-5104.97968368,0.0004,4]
[325188718,1714561750232,-252.7509919,0.00041,2]
[325188719,1714561750253,-312.16180833,0.00041096,31]
[325188720,1714561750274,-606.3257,0.00041793,2]
[325188721,1714561750294,-500.0,0.000429,42]
[325188722,1714561750316,-781.66554329,0.00043,120]
[325188723,1714561750336,-261.19117951,0.00043418,2]
[325188724,1714561750357,-7934.04214632,0.00043474,15]
[325188725,1714561750378,-172.24155385,0.00043517,4]
[325188726,1714561750399,-278.18848216,0.00043517,2]
[325188727,1714561750422,-200.46680797,0.00043517,4]
[325188728,1714561750442,-303.86860129,0.00043519,15]
[325188729,1714561750464,-1145.59,0.00043534,7]
[325188730,1714561750487,-1145.59,0.00043534,10]
[325188731,1714561750510,-1145.59,0.00043534,13]
[325188732,1714561750533,-1145.59,0.00043534,16]
[325188733,1714561750555,-1145.59,0.00043534,19]
[325188734,1714561750576,-1145.59,0.00043534,22]
[325188735,1714561750597,-151.0,0.00043535,7]
[325188736,1714561750615,-151.0,0.00043535,7]
[325188737,1714561750634,-151.0,0.00043535,7]
[325188738,1714561750658,-151.0,0.00043535,7]
[325188739,1714561750677,-151.0,0.00043535,7]
[325188740,1714561750696,-157.887355,0.00043535,7]
[325188741,1714561750717,-151.0,0.00043535,7]
[325188742,1714561750736,-151.0,0.00043535,7]
[325188743,1714561750756,-294.868174,0.00043535,7]
[325188744,1714561750775,-294.868174,0.00043535,7]
[325188745,1714561750794,-437.723155,0.00043535,7]
[325188746,1714561750813,-437.723155,0.00043535,7]
[325188747,1714561750834,-468.268038,0.00043535,7]
[325188748,1714561750859,-468.268038,0.00043535,7]
[325188749,1714561750882,-151.0,0.00043535,7]
[325188750,1714561750908,-151.669557,0.00043535,7]
[325188751,1714561750936,-151.0,0.00043535,7]
[325188752,1714561750959,-329.457297,0.00043535,7]
[325188753,1714561750983,-151.0,0.00043535,7]
[325188754,1714561751008,-329.457297,0.00043535,7]
[325188755,1714561751034,-224.114001,0.00043535,7]
[325188756,1714561751058,-329.129499,0.00043535,7]
[325188757,1714561751080,-151.0,0.00043535,7]
[325188758,1714561751105,-329.129499,0.00043535,7]
[325188759,1714561751131,-656.48,0.00043544,7]
[325188760,1714561751156,-656.48,0.00043544,7]
[325188761,1714561751180,-656.48,0.00043544,7]
[325188762,1714561751207,-656.48,0.00043544,7]
[325188763,1714561751229,-656.48,0.00043544,7]
[325188764,1714561751249,-656.48,0.00043544,7]
[325188765,1714561751269,-656.48,0.00043544,7]
[325188766,1714561751289,-656.48,0.00043544,7]
[325188767,1714561751310,-154.29431263,0.00043554,30]
[325188768,1714561751330,-606.3257,0.00044405,2]
[325188769,1714561751768,6668.8,0.0003489,3]
[325188770,1714561761802,335.96749206,0.00020913,2]
[325188771,1714561763687,249.7839256,0.00035,4]
[325188772,1714561764995,303.86860129,0.0004,15]
[325188773,1714561765265,1378.68043058,0.00020913,2]
[325188774,1714561774588,300.00000002,0.00044183,15]
[325188775,1714561779728,447.2209758,0.00032,4]
[325188776,1714561780791,466.46671286,0.00034,4]
[325188777,1714561780904,303.86860129,0.0004,15]
[325188778,1714561781724,597.98045973,0.00035,2]
[325188779,1714561782298,14243.77368763,0.00034142,2]
[325188783,1714561831887,405.48824935,0.00019178,2]
[325188789,1714561833867,-443.86039295,0.00020913,2]
[325188880,1714561839012,-368.67481999,0.00020913,2]
[325188902,1714561839230,-566.14521764,0.00020913,2]
[325188903,1714561839239,-383.60092673,0.00032,4]
[325188904,1714561839248,-466.46671286,0.00034,4]
[325188905,1714561839258,-1813.60505913,0.00034142,2]
[325188906,1714561839269,-8842.62125324,0.00034142,2]
[325188907,1714561839278,-427.30747994,0.00035,2]
[325188908,1714561839288,-606.32569,0.00039181,2]
[325188909,1714561839297,-2772.84082493,0.0004,4]
[325188910,1714561839308,-2332.13885875,0.0004,4]
[325188911,1714561839317,-303.86860129,0.0004,15]
[325188912,1714561839327,-607.93016636,0.0004,2]
[325188913,1714561839336,-252.7509919,0.00041,2]
[325188914,1714561839345,-606.3257,0.00042913,2]
[325188915,1714561839354,-1919.07708441,0.0004353,3]
[325188921,1714561840618,-3638.26291559,0.0004353,3]
[325188922,1714561840628,-38819.48477364,0.0004354,30]
[325188986,1714561843811,-38039.18214727,0.0004354,30]
[325188987,1714561843821,-300.0,0.0004354,2]
[325188988,1714561843831,-781.60862793,0.0004354,2]
[325188989,1714561843840,-1192.51374312,0.0004354,14]
[325188991,1714561843850,-224.71241859,0.0004354,10]
[325188993,1714561843859,-286.66843857,0.0004354,2]
[325188994,1714561843868,-315.61191636,0.0004354,2]
[325188995,1714561843878,-281.23658989,0.0004354,2]
[325188996,1714561843887,-1023.35584856,0.0004354,10]
[325188997,1714561843898,-469.24613692,0.0004354,2]
[325188998,1714561843907,-430.87409435,0.0004354,2]
[325188999,1714561843916,-881.90869991,0.0004354,2]
[325189000,1714561843925,-1001.14167171,0.0004354,120]
[325189001,1714561843935,-165.8168504,0.0004354,48]
[325189002,1714561843945,-154.92344405,0.00045,30]
[325189003,1714561843955,-730.81933695,0.00045301,30]
[325189004,1714561843966,-10000.0,0.00045678,120]
[325189005,1714561843975,-261.19117949,0.00046039,2]
[325189006,1714561843986,-213.16118022,0.00046644,2]
[325189007,1714561844205,-393.16451978,0.00046644,2]
[325189008,1714561844215,-1145.59,0.00046979,25]
[325189009,1714561844224,-17523.98017031,0.0004698,120]
[325189010,1714561844235,-294.868174,0.0004698,7]
[325189011,1714561844244,-294.868174,0.0004698,7]
[325189012,1714561844253,-437.723155,0.0004698,7]
[325189013,1714561844262,-437.723155,0.0004698,7]
[325189014,1714561844271,-468.268038,0.0004698,7]
[325189015,1714561844281,-468.268038,0.0004698,7]
[325189016,1714561844290,-151.0,0.0004698,7]
[325189017,1714561844299,-151.0,0.0004698,7]
[325189018,1714561844309,-329.457297,0.0004698,7]
[325189019,1714561844317,-329.457297,0.0004698,7]
[325189020,1714561844327,-329.129499,0.0004698,7]
[325189021,1714561844336,-329.129499,0.0004698,7]
[325189022,1714561844345,-151.0,0.0004698,7]
[325189023,1714561844354,-281.862295,0.0004698,7]
[325189024,1714561844363,-151.0,0.0004698,7]
[325189025,1714561844372,-151.0,0.0004698,7]
[325189026,1714561844381,-286.28961,0.0004698,7]
[325189027,1714561844390,-286.28961,0.0004698,7]
[325189028,1714561844400,-151.0,0.0004698,7]
[325189029,1714561844409,-151.0,0.0004698,7]
[325189030,1714561844419,-151.0,0.0004698,7]
[325189031,1714561844428,-174.858695,0.0004698,7]
[325189032,1714561844438,-1019.48722,0.0004698,7]
[325189033,1714561844447,-1019.48722,0.0004698,7]
[325189034,1714561844456,-494.163182,0.0004698,7]
[325189035,1714561844466,-494.163182,0.0004698,7]
[325189036,1714561844475,-367.273465,0.0004698,7]
[325189037,1714561844485,-151.0,0.0004698,7]
[325189038,1714561844495,-151.0,0.0004698,7]
[325189039,1714561844504,-367.273465,0.0004698,7]
[325189040,1714561844513,-151.0,0.0004698,7]
[325189041,1714561844522,-620.556958,0.0004698,7]
[325189042,1714561844531,-151.0,0.0004698,7]
[325189043,1714561844540,-620.556958,0.0004698,7]
[325189044,1714561844549,-151.0,0.0004698,7]
[325189045,1714561844558,-151.0,0.0004698,7]
[325189047,1714561844567,-154.410289,0.0004698,7]
[325189048,1714561844576,-151.0,0.0004698,7]
[325189049,1714561844585,-151.0,0.0004698,7]
[325189050,1714561844594,-225.12663,0.0004698,7]
[325189051,1714561844603,-151.0,0.0004698,7]
[325189052,1714561844612,-225.12663,0.0004698,7]
[325189054,1714561844621,-259.584043,0.0004698,7]
[325189056,1714561844631,-151.0,0.0004698,7]
[325189058,1714561844639,-259.584043,0.0004698,7]
[325189059,1714561844649,-151.0,0.0004698,3]
[325189060,1714561844657,-151.0,0.0004698,3]
[325189061,1714561844666,-151.0,0.0004698,7]
[325189062,1714561844676,-151.0,0.0004698,7]
[325189063,1714561844685,-739.065446,0.0004698,7]
[325189064,1714561844695,-739.065446,0.0004698,7]
[325189065,1714561844704,-151.0,0.0004698,7]
[325189066,1714561844713,-151.0,0.0004698,7]
[325189067,1714561844723,-289.503145,0.0004698,7]
[325189068,1714561844732,-289.503145,0.0004698,7]
[325189069,1714561844742,-251.613386,0.0004698,7]
[325189070,1714561844750,-251.613386,0.0004698,7]
[325189071,1714561844759,-154.29431263,0.00046984,30]
[325189072,1714561844769,-1172.5,0.0004713,3]
[325189073,1714561844779,-10000.0,0.00047867,120]
[325189074,1714561844789,-329.457297,0.00047867,7]
[325189075,1714561844798,-329.457297,0.00047867,7]
[325189076,1714561844807,-329.129499,0.00047867,7]
[325189077,1714561844816,-329.129499,0.00047867,7]
[325189078,1714561844824,-151.0,0.00047867,7]
[325189079,1714561844834,-151.0,0.00047867,7]
[325189080,1714561844843,-151.0,0.00047867,7]
[325189081,1714561844852,-286.28961,0.00047867,7]
[325189082,1714561844861,-286.28961,0.00047867,7]
[325189083,1714561844870,-151.0,0.00047867,7]
[325189084,1714561844879,-179.773504,0.00047867,7]
[325189085,1714561844889,-151.0,0.00047867,7]
[325189086,1714561844898,-174.858695,0.00047867,7]
[325189087,1714561844908,-1019.48722,0.00047867,7]
[325189088,1714561844917,-1019.48722,0.00047867,7]
[325189089,1714561844927,-494.163182,0.00047867,7]
[325189090,1714561844935,-494.163182,0.00047867,7]
[325189091,1714561844943,-367.273465,0.00047867,7]
[325189092,1714561844957,-151.0,0.00047867,7]
[325189093,1714561844966,-151.0,0.00047867,7]
[325189094,1714561844975,-367.273465,0.00047867,7]
[325189095,1714561844987,-151.0,0.00047867,7]
[325189096,1714561844998,-620.556958,0.00047867,7]
[325189097,1714561845008,-151.0,0.00047867,7]
[325189098,1714561845018,-620.556958,0.00047867,7]
[325189099,1714561845028,-151.0,0.00047867,7]
[325189100,1714561845038,-151.0,0.00047867,7]
[325189101,1714561845048,-151.0,0.00047867,7]
[325189102,1714561845056,-151.0,0.00047867,7]
[325189103,1714561845066,-225.12663,0.00047867,7]
[325189104,1714561845075,-225.12663,0.00047867,7]
[325189105,1714561845083,-151.0,0.00047867,7]
[325189106,1714561845092,-259.584043,0.00047867,7]
[325189107,1714561845102,-48.02609338,0.00047867,7]
[325189128,1714561848795,-2382.85189368,0.00047857,3]
[325189129,1714561864098,154.76784823,0.00019,2]
[325189130,1714561875955,154.70605849,9.999e-05,2]
[325189133,1714562476881,1378.68043058,9.999e-05,2]
[325189138,1714562784054,285.03657624,9.999e-05,2]
[325189139,1714562788728,280.75978917,9.999e-05,2]
[325189140,1714562789691,16102.63338321,9.999e-05,2]
[325189141,1714562800006,272.26879288,9.999e-05,2]
[325189142,1714562804771,24900.0,0.00019888,2]
[325189143,1714562808709,280.61665177,9.999e-05,2]
[325189144,1714562809675,16102.63338321,9.999e-05,2]
[325189145,1714562824888,3419.62742954,9.999e-05,2]
[325189146,1714562827672,936.35639698,9.999e-05,2]
[325189147,1714562905796,697.32164627,9.999e-05,2]
[325189148,1714562909783,354.57887113,9.999e-05,2]
[325189149,1714562957207,-1378.68043058,0.00020809,2]
[325189150,1714562957236,-623.62317955,0.0002081,2]
[325189151,1714562960183,-94.36579238,0.0002081,2]
[325189152,1714562960208,-157.13735351,0.00020912,2]
[325189153,1714562960235,-2587.76784421,0.00020912,2]
[325189154,1714562960261,-173.46499647,0.00020912,2]
[325189155,1714562960288,-608.070651,0.00020912,2]
[325189156,1714562960314,-272.70165246,0.00020912,2]
[325189157,1714562960340,-189.36782433,0.00020912,2]
[325189158,1714562960369,-1369.93217697,0.00020912,2]
[325189159,1714562960395,-247.65090044,0.00020912,2]
[325189160,1714562960420,-156.28533307,0.00020912,2]
[325189161,1714562960445,-325.63833926,0.00020912,2]
[325189162,1714562960470,-176.59551373,0.00020913,2]
[325189163,1714562960495,-216.16208935,0.00020913,2]
[325189164,1714562960523,-154.79876161,0.00020913,2]
[325189165,1714562960549,-166.666666,0.00021918,2]
[325189166,1714562960575,-166.666666,0.00022431,2]
[325189167,1714562960601,-166.666666,0.00022944,2]
[325189168,1714562960627,-166.666666,0.00023456,2]
[325189169,1714562960652,-166.666666,0.00023969,2]
[325189170,1714562960678,-166.666666,0.00024482,2]
[325189171,1714562960703,-466.46671286,0.00034,4]
[325189172,1714562960729,-1143.44070344,0.00035,4]
[325189173,1714562960755,-205.778117,0.00035616,120]
[325189174,1714562960782,-7934.04214632,0.00037,5]
[325189175,1714562960808,-321.52307401,0.00038,30]
[325189176,1714562960836,-607.55451,0.00039186,2]
[325189177,1714562960864,-5104.97968368,0.0004,4]
[325189178,1714562960887,-6000.0,0.0004,120]
[325189179,1714562960908,-252.7509919,0.00041,2]
[325189180,1714562960929,-607.55451,0.00041363,2]
[325189181,1714562960949,-154.70605849,0.0004234,10]
[325189182,1714562960971,-607.55452,0.0004354,2]
[325189183,1714562961237,-150.75878594,0.00043689,2]
[325189184,1714562961260,-205.778117,0.00044521,120]
[325189185,1714562971905,156.86898175,0.00038,30]
[325189186,1714562971995,386.30437416,0.00035,4]
[325189187,1714562972461,1378.68043058,0.00020913,2]
[325189188,1714562975854,604.33491893,0.00020913,2]
[325189189,1714562991068,1378.68043058,0.00020913,2]
[325189190,1714562993479,607.55451,0.00039186,2]
[325189191,1714562993781,607.55451,0.00042088,2]
[325189192,1714563001861,466.46671286,0.00034,4]
[325189193,1714563008479,1378.68043058,0.00020913,2]
[325189194,1714563011558,252.7509919,0.00041,2]
[325189195,1714563023791,466.46671286,0.00034,4]
[325189214,1714563032443,1352.21823425,0.00020913,2]
[325189226,1714563037529,189.62824351,0.00041,2]
[325189266,1714563040050,-607.55452,0.00044991,2]
[325189267,1714563040060,-1520.24750243,0.00045,4]
[325189268,1714563040068,-208.0,0.00045,90]
[325189269,1714563040077,-268.06461862,0.00045,4]
[325189270,1714563040086,-151.0,0.00045,120]
[325189271,1714563040095,-151.0,0.00045644,120]
[325189272,1714563040104,-40.52565956,0.00045685,90]
[325189273,1714563040115,-167.47434044,0.00045685,90]
[325189274,1714563040124,-154.73694719,0.000459,4]
[325189275,1714563040133,-151.0,0.00046301,120]
[325189276,1714563040142,-92.92041666,0.00046335,30]
[325189277,1714563041371,-613.53827572,0.00046335,30]
[325189278,1714563041542,-151.0,0.00046959,120]
[325189279,1714563041553,-235.22713152,0.00047,120]
[325189280,1714563041562,-1074.7,0.00047568,3]
[325189281,1714563041572,-151.0,0.00047616,120]
[325189282,1714563041582,-208.0,0.00047682,90]
[325189283,1714563041591,-303.86860129,0.00047857,15]
[325189284,1714563041601,-607.55451,0.00047894,2]
[325189285,1714563041610,-2000.0,0.00048,2]
[325189286,1714563041620,-151.0,0.00048274,120]
[325189287,1714563041630,-150.75878594,0.00048544,2]
[325189288,1714563041639,-488.63992534,0.00048832,13]
[325189289,1714563041649,-5800.0,0.00048888,120]
[325189290,1714563041659,-10000.0,0.00048888,120]
[325189291,1714563041668,-151.0,0.00048932,120]
[325189292,1714563041678,-5874.0,0.00048959,30]
[325189293,1714563041687,-3581.72130788,0.00049,120]
[325189294,1714563041699,-3148.77822637,0.00049,120]
[325189295,1714563041708,-153.0,0.00049009,2]
[325189296,1714563041718,-153.0,0.00049009,2]
[325189297,1714563041727,-153.0,0.00049009,2]
[325189298,1714563041737,-153.0,0.00049009,2]
[325189299,1714563041746,-153.0,0.00049009,2]
[325189300,1714563041756,-153.0,0.00049009,2]
[325189301,1714563041766,-153.0,0.00049009,2]
[325189302,1714563041775,-203.8574549,0.00049009,2]
[325189303,1714563041784,-153.0,0.00049009,2]
[325189304,1714563041795,-387.9390829,0.00049009,2]
[325189305,1714563041804,-203.8574549,0.00049009,2]
[325189306,1714563041815,-203.8574549,0.00049009,2]
[325189307,1714563041825,-203.8574549,0.00049009,2]
[325189308,1714563041835,-203.8574549,0.00049009,2]
[325189309,1714563041844,-203.8574549,0.00049009,2]
[325189310,1714563041853,-203.8574549,0.00049009,2]
[325189311,1714563041863,-203.8574549,0.00049009,2]
[325189312,1714563041872,-203.8574549,0.00049009,2]
[325189313,1714563041882,-153.0,0.00049046,2]
[325189314,1714563041891,-153.0,0.00049046,2]
[325189315,1714563041900,-153.0,0.00049046,2]
[325189316,1714563041909,-153.0,0.00049046,2]
[325189317,1714563041919,-153.0,0.00049046,2]
[325189318,1714563041928,-153.0,0.00049046,2]
[325189319,1714563041938,-389.00908542,0.00049187,30]
[325189320,1714563041947,-732.44116573,0.00049303,120]
[325189321,1714563041957,-366.22058287,0.00049303,120]
[325189322,1714563041966,-301.51757188,0.00049359,4]
[325189323,1714563041975,-1000.0,0.00049359,30]